Cogmind - Beta 14 @@@ ROGUE MODE // 2025.01.16 @ 20:53:23 Player: muesli Result: Destroyed by G-50 Soldier with Heavy Laser Performance ------------- Evolutions (2) 1000 Regions Visited (3) 600 Robots Destroyed (24) 120 Value Destroyed (923) 923 Prototype IDs (0) 0 Alien Tech Used (0) 0 Bonus (0) 0 TOTAL SCORE: 2643 Bonus ------- None Cogmind --------- Core Integrity 0/550 Matter 205/300 Energy 59/100 System Corruption 1% Temperature Cool (28) Movement Walking (120) Location -8/Materials Parts ------- > --- POWER (1) -------- (None) > --- PROPULSION (3) --- Aluminum Leg > --- UTILITY (3) ------ Advanced Visual Processing Unit > --- WEAPON (4) ------- Improved Light Cannon > --- INVENTORY (5) ---- Light Treads Light Treads Wheel Peak State ------------ > --- POWER ------------ Light Nuclear Core > --- PROPULSION ------- Wheel Wheel Compact Wheel > --- UTILITY ---------- Small Storage Unit Advanced Visual Processing Unit > --- WEAPON ----------- Particle Gun Field Laser Heavy Assault Cannon > --- INVENTORY -------- Light Treads Light Treads Aluminum Leg Aluminum Leg Wheel [Rating: 21] Favorites ----------- Power Light Ion Engine Engine Light Ion Engine Power Core Light Nuclear Core Propulsion Aluminum Leg Treads Light Treads Leg Aluminum Leg Wheel Wheel Utility Small Storage Unit Storage Small Storage Unit Processor Advanced Visual Processing Unit Weapon EM Pulse Gun Energy Gun EM Pulse Gun Energy Cannon EM Pulse Cannon Ballistic Gun Assault Rifle Ballistic Cannon Heavy Assault Cannon Launcher Concussive RPG Build | -11 -10 -10 -8 ------- Run | Yrd Mat Sub Mat Slots Evolved 4 | . . . 4 Power . | . . . . Propulsion 1 | . . . 1 Utility 1 | . . . 1 Weapon 2 | . . . 2 Parts Attached 31 | . . . 31 Power 3 | . . . 3 Engine 2 | . . . 2 Core 1 | . . . 1 Reactor . | . . . . Propulsion 11 | . . . 11 Treads 1 | . . . 1 Leg 2 | . . . 2 Wheel 8 | . . . 8 Hover . | . . . . Flight . | . . . . Utility 2 | . . . 2 Device . | . . . . Storage 1 | . . . 1 Processor 1 | . . . 1 Hackware . | . . . . Protection . | . . . . Artifact . | . . . . Weapon 15 | . . . 15 Energy Gun 5 | . . . 5 Energy Cannon 2 | . . . 2 Ballistic Gun . | . . . . Ballistic Cannon 6 | . . . 6 Launcher 2 | . . . 2 Special Weapon . | . . . . Impact Weapon . | . . . . Slashing Weapon . | . . . . Piercing Weapon . | . . . . Special Melee Weapon . | . . . . Unidentified Prototypes . | . . . . Corrupted Parts 1 | . . . 1 System Corruption 1 | . . . 1 Parts Lost 20 | . . . 20 Power 2 | . . . 2 Propulsion 7 | . . . 7 Utility 2 | . . . 2 Weapon 9 | . . . 9 Highest Loss Streak 9 | . . . 9 To Critical Strikes . | . . . . Average Slot Usage (%) 78 | . 85 85 64 Engine 10 | . 14 14 4 Leg 19 | . 28 28 2 Wheel 5 | . . . 17 Storage 12 | . 14 14 9 Processor 1 | . . . 5 Energy Gun 13 | . 14 14 13 Ballistic Gun 10 | . 14 14 3 Ballistic Cannon 1 | . . . 4 Peak Build Rating 21 | . 6 6 21 Average Rating 8 | . 6 6 13 On Entrance 6 | 6 6 6 6 Naked Turns . | . . . . Heaviest Build 28 | 12 12 12 28 Greatest Support 38 | 20 20 20 38 Greatest Overweight (x) 3 | . . . 3 Average Overweight (x) . | . . . . Largest Inventory Capacity 8 | . 8 8 8 Average Capacity 7 | . 8 8 7 Most Carried 8 | . 7 7 8 Average Carried 6 | . 6 7 5 Final Capacity 8 | 8 8 8 5 Final Carried 7 | 6 7 7 3 Class Distribution -------------------- 80% | Mutant 10% | Scavenger-Skirmisher 9% | Gunner Dominant Class ---------------- Mutant | -10/Materials Mutant | -10/Subcaves Scavenger-Skirmisher | -8/Materials Resources | -11 -10 -10 -8 ----------- Run | Yrd Mat Sub Mat Matter Collected 509 | 200 9 . 300 Remotely . | . . . . Salvage Created 1115 | . 113 . 1002 Parts 52 | . 8 . 44 Haulers Intercepted . | . . . . Recyclers Shooed 1 | . . . 1 Parts Field Recycled . | . . . . Retrieved Matter . | . . . . Parts Self-Destructed . | . . . . Prevented . | . . . . Kills | -11 -10 -10 -8 ------- Run | Yrd Mat Sub Mat Combat Hostiles Destroyed 18 | . 2 . 16 Guns 8 | . 2 . 6 Cannons 8 | . . . 8 AOE 2 | . . . 2 Classes Destroyed 8 | . 2 . 6 Worker 1 | . . . 1 Builder 2 | . 1 . 1 Tunneler 1 | . . . 1 Recycler 2 | . . . 2 Grunt 13 | . 2 . 11 Sentry 2 | . . . 2 Specialist 2 | . . . 2 Heavy 1 | . . . 1 Best Kill Streak 5 | . 3 . 5 Combat Bots Only 4 | . 2 . 4 Max Kills in Single Turn 2 | . 2 . 2 Gunslinging 1 | . 1 . . Exploded 2 | . . . 2 Melee . | . . . . Uniques/NPCs Destroyed . | . . . . Combat | -11 -10 -10 -8 -------- Run | Yrd Mat Sub Mat Hostile Shots Fired 159 | . 5 3 151 Missed 37 | . 1 . 36 Damage Taken 2142 | . 55 63 2024 Core 565 | . 10 . 555 Absorbed by Shields . | . . . . Core Remaining (%) 98 | 100 . 96 . Volleys Fired 62 | . 3 . 59 Largest 4 | . 2 . 4 Hottest 188 | . 60 . 188 Shots Fired 130 | . 6 . 124 Gun 101 | . 6 . 95 Cannon 27 | . . . 27 Launcher 2 | . . . 2 Special . | . . . . Kinetic 33 | . 3 . 30 Thermal 70 | . . . 70 Explosive 2 | . . . 2 Electromagnetic 25 | . 3 . 22 Robot Hit Streak 12 | . 4 . 12 Robot Miss Streak 4 | . 1 . 4 Penetration Max . | . . . . Secondary Targets 2 | . 1 . 1 Max Gunslinging Chain 1 | . 1 . 1 Shots Hit Robots 86 | . 5 . 81 Core Hits 45 | . 4 . 41 Critical Kills . | . . . . Critical Parts Destroyed . | . . . . Critical Strikes 1 | . 1 . . Corrupt 1 | . 1 . . Melee Attacks . | . . . . Impact . | . . . . Slashing . | . . . . Piercing . | . . . . Sneak Attacks . | . . . . Combat Hostiles . | . . . . Follow-up Attacks . | . . . . Damage Inflicted 2305 | . 69 . 2236 Guns 1053 | . 69 . 984 Cannons 822 | . . . 822 Explosions 418 | . . . 418 Melee . | . . . . Ramming 12 | . . . 12 Kinetic 781 | . 41 . 740 Thermal 1036 | . . . 1036 Explosive 125 | . . . 125 Electromagnetic 339 | . 28 . 311 Impact 12 | . . . 12 Slashing . | . . . . Piercing . | . . . . Highest Corruption 1 | . . . 1 Average Corruption 1 | . . . 1 Corruption Purged . | . . . . Corruption Blocked . | . . . . Effects 3 | . . . 3 Message Errors 2 | . . . 2 Data Loss (minor) 1 | . . . 1 Overload Shots . | . . . . Overflow Damage 65 | . . . 65 Projectiles . | . . . . Explosions 65 | . . . 65 Melee . | . . . . Knockbacks 3 | . . . 3 Impact . | . . . . Kinetic 3 | . . . 3 Secondary . | . . . . Self-Inflicted Damage 54 | . . . 54 Shots 1 | . . . 1 Rammed 2 | . . . 2 Targets Rammed 2 | . . . 2 Kicked . | . . . . Crushed . | . . . . Highest Temperature 454 | . 24 . 454 Average Temperature 168 | . 19 . 174 Received Heat Transfer 987 | . 33 18 936 Effects 3 | . . . 3 Damage (minor) 1 | . . . 1 Damage (major) 2 | . . . 2 Siege Activations . | . . . . Robots Corrupted . | . . . . Combat Hostiles . | . . . . Parts Fried 3 | . . . 3 Impact Corruptions . | . . . . Robots Melted . | . . . . Combat Hostiles . | . . . . Parts Melted 3 | . . . 3 Heat Transferred 1978 | . . . 1978 Parts Sabotaged . | . . . . Parts Stolen . | . . . . Parts Stripped . | . . . . Power Chain Reactions 2 | . . . 2 Alert | -11 -10 -10 -8 ------- Run | Yrd Mat Sub Mat Peak Influence 311 | . 55 . 311 Initial . | . . . . Average 46 | . 18 . 107 Maximum Alert Level 1 | . . . 1 Low Security (%) 95 | . 100 . 85 Level 1 4 | . . . 14 Level 2 . | . . . . Level 3 . | . . . . Level 4 . | . . . . Level 5 . | . . . . High Security . | . . . . Max Security . | . . . . Squads Dispatched 4 | . . . 4 Investigation . | . . . . Extermination . | . . . . Reinforcement 4 | . . . 4 Assault . | . . . . Garrison . | . . . . Intercept . | . . . . Searches Triggered . | . . . . Construction Impeded 1 | . . . 1 Haulers Reinforced . | . . . . Active Scanning Responses . | . . . . Cargo Convoy Interrupts . | . . . . Stealth | -11 -10 -10 -8 --------- Run | Yrd Mat Sub Mat Distress Signals 2 | . . . 2 Communications Jammed . | . . . . Distress Signals . | . . . . Times Spotted 29 | . 3 1 25 Peak Tracking Total 7 | . 2 1 7 Tactical Retreats 4 | . . . 4 Traps | -11 -10 -10 -8 ------- Run | Yrd Mat Sub Mat Traps Triggered . | . . . . Indirectly . | . . . . Trap Hack Attempts . | . . . . Triggered . | . . . . Disarmed . | . . . . Reprogrammed . | . . . . Reused . | . . . . Traps Extracted . | . . . . Installed . | . . . . Triggered . | . . . . Machines | -11 -10 -10 -8 ---------- Run | Yrd Mat Sub Mat Machines Disabled 2 | . . . 2 Max in Single Turn 1 | . . . 1 Machines Repaired . | . . . . Machines Dismantled . | . . . . Machines Sabotaged . | . . . . Overloaded Fab Kills . | . . . . Hacking | -11 -10 -10 -8 --------- Run | Yrd Mat Sub Mat Machines Accessed . | . . . . Terminals . | . . . . Fabricators . | . . . . Repair Stations . | . . . . Recycling Units . | . . . . Scanalyzers . | . . . . Garrison Access . | . . . . Total Hacks . | . . . . Successful . | . . . . Failed . | . . . . Catastrophic . | . . . . Database Lockouts . | . . . . Manual . | . . . . Terminals . | . . . . Fabricators . | . . . . Repair Stations . | . . . . Recycling Units . | . . . . Scanalyzers . | . . . . Garrison Access . | . . . . Terminal Hacks . | . . . . Fabricator Hacks . | . . . . Repair Station Hacks . | . . . . Recycling Unit Hacks . | . . . . Scanalyzer . | . . . . Garrison Access Hacks . | . . . . Unauthorized Hacks . | . . . . Terminals . | . . . . Fabricators . | . . . . Repair Stations . | . . . . Recycling Units . | . . . . Scanalyzers . | . . . . Garrison Access . | . . . . Data Cores Recovered . | . . . . Used . | . . . . Hacking Detections . | . . . . Full Trace Events . | . . . . Feedback Events . | . . . . Feedback Blocked . | . . . . Robot Schematics Acquired . | . . . . Robots Built . | . . . . Authchips . | . . . . Time . | . . . . Total Robot Build Rating . | . . . . Part Schematics Acquired . | . . . . Parts Built . | . . . . Authchips . | . . . . Time . | . . . . Total Part Build Rating . | . . . . Parts Repaired . | . . . . Time . | . . . . Parts Recycled . | . . . . Recycled Matter . | . . . . Retrieved Matter . | . . . . Retrieved Components . | . . . . Parts Scanalyzed . | . . . . Part Schematics Acquired . | . . . . Parts Damaged . | . . . . Bothacking | -11 -10 -10 -8 ------------ Run | Yrd Mat Sub Mat Used RIF Installer . | . . . . Robots Hacked . | . . . . Non-combat . | . . . . Combat . | . . . . Robot Hacks Applied . | . . . . Relay Couplers Released . | . . . . Fabnet Peak Effective % . | . . . . Robots Rewired . | . . . . Allies Hacked . | . . . . Hacks Repelled . | . . . . Allies | -11 -10 -10 -8 -------- Run | Yrd Mat Sub Mat Total Allies . | . . . . Largest Group . | . . . . Highest-Rated Group . | . . . . Highest-Rated Ally . | . . . . Total Orders . | . . . . Ally Attacks . | . . . . Total Damage . | . . . . Kills . | . . . . Allies Corrupted . | . . . . Allies Melted . | . . . . Intel | -11 -10 -10 -8 ------- Run | Yrd Mat Sub Mat Robot Analysis Total . | . . . . Derelict Logs Recovered . | . . . . Drone Launches . | . . . . Drone Recoveries . | . . . . Exploration | -11 -10 -10 -8 ------------- Run | Yrd Mat Sub Mat Turns Passed 1593 | . 1066 18 509 Spaces Moved 459 | 1 204 16 238 Core 10 | . . . 10 Treads . | . . . . Legs 262 | 1 204 16 41 Wheels 187 | . . . 187 Hover . | . . . . Flight . | . . . . Fastest Speed 50 | 120 120 120 50 Average Speed 107 | 120 120 120 96 Slowest Speed 200 | 120 120 120 200 Overloaded Moves . | . . . . Propulsion Burnouts . | . . . . Robots Hopped . | . . . . Cave-ins Triggered . | . . . . Exploration Rate (%) 11 | 1 21 3 21 Regions Visited 3 Branch Regions 1 Pre-discovered Areas . | . . . . Known Exits Taken . | . . . . Unknown Exits Taken 3 | 1 1 1 . Scrap Searched . | . . . . Spaces Dug . | . . . . Terrain Destroyed 38 | . . . 38 Melee . | . . . . Projectile 4 | . . . 4 AOE 34 | . . . 34 Terrain Rammed . | . . . . Walls Destroyed . | . . . . Machines Disabled . | . . . . Actions | -11 -10 -10 -8 --------- Run | Yrd Mat Sub Mat Total 1438 | . 1019 15 404 Wait 879 | . 812 . 67 Move 456 | . 203 15 238 Hop . | . . . . Pick Up 2 | . 1 . 1 Fast Attach 18 | . . . 18 Attach 11 | . . . 11 Detach 5 | . . . 5 Swap 2 | . . . 2 Drop 1 | . . . 1 Fire 62 | . 3 . 59 Melee . | . . . . Ram 2 | . . . 2 Kick . | . . . . Crush . | . . . . Escape Stasis . | . . . . Rewire . | . . . . Trap . | . . . . Miscellaneous . | . . . . Route ------- -11/Scrapyard -10/Materials -10/Subcaves -8/Materials History --------- Turn | Location | Event 1 | -11/Scrapyard | Discovered new exit (range 0) 1 | -11/Scrapyard | Entered Materials 305 | -10/Materials | Build established: Mutant 1059 | -10/Materials | Discovered new exit (range 7) 1067 | -10/Materials | Entered Subcaves 1067 | -10/Subcaves | Discovered new exit (range 15) 1085 | -10/Subcaves | Entered Materials 1085 | -8/Materials | Evolved 4 slots: Propulsion x1, Utility x1, Weapon x2 1311 | -8/Materials | Lost 3 parts (1n2w) 1503 | -8/Materials | Core integrity fell below 50% 1559 | -8/Materials | Core integrity fell below 20% 1582 | -8/Materials | Lost 9 parts (1p3n1u4w) 1594 | -8/Materials | Destroyed by G-50 Soldier with Heavy Laser Last Messages --------------- G-47 Trooper knocked back. K-01 Serf knocked back. Acquired Concussive RPG. Concussive RPG expended. G-47 Trooper destroyed. G-47 Trooper knocked back. K-01 Serf collects debris. The unstable cave ceiling collapses. Y-45 Defender destroyed. K-01 Serf collects debris. Fusion Modulator explodes. Aluminum Leg destroyed. Destroyed Aluminum Leg. Destroyed Mining Laser. U-05 Engineer lays Concrete. G-47 Trooper destroyed. Imp. Light Cannon destroyed. K-01 Serf collects debris. U-05 Engineer lays Concrete. Critical hit (Burn: +37). Map ----- +----------------------------------------------------+ | ??# ########???????####+########## ???????????? | | ### ###???# #??????# ???????????? | | # #??#####?????# ???????????? | | % #### ########% ????????????????? | | % = [%=!%% ![ ########??????????????????? | | ## ###########! %# #??????????????????? | | # % # = #???????# #%""" #??????????????????? | | ## ## ######### + "" #??????????????????? | | ?# =%## ## #%!" #??????????????????? | | ?# %## ## # * #??????????????????? | | ?# [## ##""" ] # #??????????????????? | | ?# !%## ##"T ########??????????????????? | | ?# ## ##""" t#????????????#????????????? | | ?# ## ## ^ #??????????? #????????????? | | ? ####### ############ ##???????????? | | ? [[[ ####????????? | | ? T [[[ % %[ u #??????? | | # [[[ = u ##??????????? | | # ########+#######k g ;;;;##+#####????????? | | ### ##?????? ??????## ; #????????? | | ?????????? ???????# =! ; #????????? | | ????????? ???????# %= ; #????????? | | ????????## ?!????????# ; #????????? | | ?????????#???????????# =; #????????? | | ??????????????????????# ; #????????? | | ??????????????????????# @/ ; #????????? | | ??????????????????????# # #????????? | | ??????????????????????# = #?????????????????? | | ??????????????????????##########?????????????????? | | ?????????????????????????????????????????????????? | | ?????????????????????????????????????????????????? | | ?????????????????????????????????????????????????? | | ?????????????????????????????????????????????????? | | ?????????????????????????????????????????????????? | | ?????????????????????????????????????????????????? | | ?????????????????????????????????????????????????? | | ?????????????????????????????????????????????????? | | ?????????????????????????????????????????????????? | | ?????????????????????????????????????????????????? | | ?????????????????????????????????????????????????? | | ?????????????????????????????????????????????????? | | ?????????????????????????????????????????????????? | | ?????????????????????????????????????????????????? | | ?????????????????????????????????????????????????? | | ?????????????????????????????????????????????????? | | ?????????????????????????????????????????????????? | | ?????????????????????????????????????????????????? | | ?????????????????????????????????????????????????? | | ?????????????????????????????????????????????????? | | ?????????????????????????????????????????????????? | +----------------------------------------------------+ Best States ------------- Heat Dissipation 31 Energy Generation 14 Energy Capacity 160 Matter Stores 300 Matter Capacity 450 Sight Range 20 Terrain Scan Density 10 Evasion (%) 55 Item Schematics ----------------- None Robot Schematics ------------------ None Fabricated ------------ Nothing Alien Tech Used ----------------- None Achievements -------------- None Challenges ------------ None Game ------ Seed PowerReactiveStick Manual? 0 Play Time 00:15:24 Cumulative 13.4 hours Start 2025.01.16 @ 20:37:05 End 2025.01.16 @ 20:53:23 Sessions 1 Manual Loads 0 Difficulty Rogue Special Mode None Game No. 29 Rogue 26 Adventurer 3 Explorer 0 Win Type - Total 0 Types 0/0/0/0/0/0/0/0/0 Lore% 7 Gallery% 15 Achievement% 14 Wizard Run 0 Options --------- Layout 0 ASCII 1 Keyboard 1 Movement Arrows Keybinds 0 Fullscreen 2 Font 24/Smallcaps Map View 76x50 Zoom Use 0% Tactical HUD 0 Map Filters NONE Filters NONE Steam 1 RUN: 3fa0c31c-d4aa-4b91-83ca-72e90b2469d2